Department family,Entity,Date,Expense Type,Expense area,Supplier,Transaction number,AP Amount (�)
Department of Health,NHS Barnsley CCG,31/12/2016,Cont Care-Learning Disab(<65),CHC ADULT FULLY FUNDED,ASC HEALTHCARE LTD,15234711,"74,331.30 "
Department of Health,NHS Barnsley CCG,31/12/2016,Cont Care-Learning Disab(<65),CHC ADULT FULLY FUNDED,ASC HEALTHCARE LTD,15481399,"58,395.14 "
Department of Health,NHS Barnsley CCG,31/12/2016,C&M-APMS OOH Opt Outs,PRC DELEGATED CO-COMMISSIONING,BARNSLEY HEALTHCARE FEDERATION,15291765,"30,390.59 "
Department of Health,NHS Barnsley CCG,31/12/2016,C&M-APMS QOF Aspiration,PRC DELEGATED CO-COMMISSIONING,BARNSLEY HEALTHCARE FEDERATION,15291765,"1,999.71 "
Department of Health,NHS Barnsley CCG,31/12/2016,C&M-APMS Contract Value,PRC DELEGATED CO-COMMISSIONING,BARNSLEY HEALTHCARE FEDERATION,15291767,"31,399.66 "
Department of Health,NHS Barnsley CCG,31/12/2016,C&M-APMS OOH Opt Outs,PRC DELEGATED CO-COMMISSIONING,BARNSLEY HEALTHCARE FEDERATION,15291767,284.68 
Department of Health,NHS Barnsley CCG,31/12/2016,C&M-APMS QOF Aspiration,PRC DELEGATED CO-COMMISSIONING,BARNSLEY HEALTHCARE FEDERATION,15291767,"2,478.09 "
Department of Health,NHS Barnsley CCG,31/12/2016,C&M-APMS Contract Value,PRC DELEGATED CO-COMMISSIONING,BARNSLEY HEALTHCARE FEDERATION,15309264,"24,181.58 "
Department of Health,NHS Barnsley CCG,31/12/2016,C&M-APMS OOH Opt Outs,PRC DELEGATED CO-COMMISSIONING,BARNSLEY HEALTHCARE FEDERATION,15309264,2.84 
Department of Health,NHS Barnsley CCG,31/12/2016,C&M-APMS Prem Actual Rent,PRC DELEGATED CO-COMMISSIONING,BARNSLEY HEALTHCARE FEDERATION,15309264,"1,429.55 "
Department of Health,NHS Barnsley CCG,31/12/2016,C&M-APMS Prem Rates,PRC DELEGATED CO-COMMISSIONING,BARNSLEY HEALTHCARE FEDERATION,15309264,377.52 
Department of Health,NHS Barnsley CCG,31/12/2016,C&M-APMS QOF Aspiration,PRC DELEGATED CO-COMMISSIONING,BARNSLEY HEALTHCARE FEDERATION,15309264,"2,248.38 "
Department of Health,NHS Barnsley CCG,31/12/2016,C&M-PMS Contract Value,PRC DELEGATED CO-COMMISSIONING,BARNSLEY HEALTHCARE FEDERATION,15309264,62.04 
Department of Health,NHS Barnsley CCG,31/12/2016,C&M-PMS Out of Hours Opt Outs,PRC DELEGATED CO-COMMISSIONING,BARNSLEY HEALTHCARE FEDERATION,15309264,15.23 
Department of Health,NHS Barnsley CCG,31/12/2016,C&M-PMS Contract Value,PRC DELEGATED CO-COMMISSIONING,BARNSLEY HEALTHCARE FEDERATION,15537020,"36,476.89 "
Department of Health,NHS Barnsley CCG,31/12/2016,C&M-PMS DES Learn Dsblty Hlth Chk,PRC DELEGATED CO-COMMISSIONING,BARNSLEY HEALTHCARE FEDERATION,15537020,116.00 
Department of Health,NHS Barnsley CCG,31/12/2016,C&M-PMS DES UNPLANNED ADMISSIONS,PRC DELEGATED CO-COMMISSIONING,BARNSLEY HEALTHCARE FEDERATION,15537020,"3,264.80 "
Department of Health,NHS Barnsley CCG,31/12/2016,C&M-PMS GP Statutory Levy,PRC DELEGATED CO-COMMISSIONING,BARNSLEY HEALTHCARE FEDERATION,15537020,(141.52)
Department of Health,NHS Barnsley CCG,31/12/2016,C&M-PMS Out of Hours Opt Outs,PRC DELEGATED CO-COMMISSIONING,BARNSLEY HEALTHCARE FEDERATION,15537020,"(1,811.49)"
Department of Health,NHS Barnsley CCG,31/12/2016,C&M-PMS Prem Healthcentre Rent,PRC DELEGATED CO-COMMISSIONING,BARNSLEY HEALTHCARE FEDERATION,15537020,"10,835.69 "
Department of Health,NHS Barnsley CCG,31/12/2016,C&M-PMS QOF Aspiration,PRC DELEGATED CO-COMMISSIONING,BARNSLEY HEALTHCARE FEDERATION,15537020,"4,195.24 "
Department of Health,NHS Barnsley CCG,31/12/2016,C&M-PMS Voluntary Levy,PRC DELEGATED CO-COMMISSIONING,BARNSLEY HEALTHCARE FEDERATION,15537020,(24.75)
Department of Health,NHS Barnsley CCG,31/12/2016,ME-PMS GP Pension EEs-PMS,PRC DELEGATED CO-COMMISSIONING,BARNSLEY HEALTHCARE FEDERATION,15537020,(704.17)
Department of Health,NHS Barnsley CCG,31/12/2016,ME-PMS GP Pension ERs Adjs - PMS,PRC DELEGATED CO-COMMISSIONING,BARNSLEY HEALTHCARE FEDERATION,15537020,(805.57)
Department of Health,NHS Barnsley CCG,30/11/2016,Hcare Srv Rec Fdtn Trust-CQUIN,ACUTE COMMISSIONING,BARNSLEY HOSPITAL NHS FOUNDATION TRUST,15166304,"251,865.00 "
Department of Health,NHS Barnsley CCG,30/11/2016,Hcare Srv Rec Fdtn Trust-Contract Baseline,ACUTE COMMISSIONING,BARNSLEY HOSPITAL NHS FOUNDATION TRUST,15166304,"10,531,214.00 "
Department of Health,NHS Barnsley CCG,31/12/2016,Cont Care-Learning Disab(<65),CHC AD FULL FUND PERS HLTH BUD,BARNSLEY METROPOLITAN BOROUGH COUNCIL,15195425,"(72,329.40)"
Department of Health,NHS Barnsley CCG,31/12/2016,Cont Care-Learning Disab(<65),CHC ADULT FULLY FUNDED,BARNSLEY METROPOLITAN BOROUGH COUNCIL,15234699,"194,881.23 "
Department of Health,NHS Barnsley CCG,31/12/2016,Cont Care-Physical Disab (65+),CHC ADULT FULLY FUNDED,BARNSLEY METROPOLITAN BOROUGH COUNCIL,15234699,"41,481.07 "
Department of Health,NHS Barnsley CCG,31/12/2016,Cont Care-Physical Disab (<65),CHC ADULT FULLY FUNDED,BARNSLEY METROPOLITAN BOROUGH COUNCIL,15234699,"275,332.92 "
Department of Health,NHS Barnsley CCG,31/12/2016,Clinical&Medical-Commercial Sector,ACUTE COMMISSIONING,CARE UK CLINICAL SERVICES LTD,15279320,"27,286.07 "
Department of Health,NHS Barnsley CCG,31/12/2016,Clinical&Medical-Commercial Sector,OUT OF HOURS,CARE UK CLINICAL SERVICES LTD,15279323,"161,281.08 "
Department of Health,NHS Barnsley CCG,31/12/2016,Clinical&Medical-Commercial Sector,ACUTE COMMISSIONING,CLAREMONT HOSPITAL,15279363,"48,289.00 "
Department of Health,NHS Barnsley CCG,31/12/2016,Cont Care-Learning Disab(<65),CHC ADULT JOINT FUNDED,DANSHELL HEALTHCARE LTD,15234718,"33,450.00 "
Department of Health,NHS Barnsley CCG,31/12/2016,Cont Care-Learning Disab(<65),CHC ADULT JOINT FUNDED,DANSHELL HEALTHCARE LTD,15481380,"34,565.00 "
Department of Health,NHS Barnsley CCG,31/12/2016,C&M-GMS DES Minor Surgery,PRC DELEGATED CO-COMMISSIONING,NHS BARNLSEY CCG GP PRACTICE,15473532,"4,091.52 "
Department of Health,NHS Barnsley CCG,31/12/2016,C&M-GMS Global Sum,PRC DELEGATED CO-COMMISSIONING,NHS BARNLSEY CCG GP PRACTICE,15473532,"74,349.17 "
Department of Health,NHS Barnsley CCG,31/12/2016,C&M-GMS PCO Seniority,PRC DELEGATED CO-COMMISSIONING,NHS BARNLSEY CCG GP PRACTICE,15473532,319.65 
Department of Health,NHS Barnsley CCG,31/12/2016,C&M-GMS Prem Healthcentre Rent,PRC DELEGATED CO-COMMISSIONING,NHS BARNLSEY CCG GP PRACTICE,15473532,"24,168.15 "
Department of Health,NHS Barnsley CCG,31/12/2016,C&M-GMS QOF Aspiration,PRC DELEGATED CO-COMMISSIONING,NHS BARNLSEY CCG GP PRACTICE,15473532,"6,825.50 "
Department of Health,NHS Barnsley CCG,31/12/2016,C&M-PMS Contract Value,PRC DELEGATED CO-COMMISSIONING,NHS BARNLSEY CCG GP PRACTICE,15293467,"(42,173.64)"
Department of Health,NHS Barnsley CCG,31/12/2016,C&M-PMS GP Statutory Levy,PRC DELEGATED CO-COMMISSIONING,NHS BARNLSEY CCG GP PRACTICE,15293467,(206.48)
Department of Health,NHS Barnsley CCG,31/12/2016,C&M-PMS Out of Hours Opt Outs,PRC DELEGATED CO-COMMISSIONING,NHS BARNLSEY CCG GP PRACTICE,15293467,(37.34)
Department of Health,NHS Barnsley CCG,31/12/2016,C&M-PMS Voluntary Levy,PRC DELEGATED CO-COMMISSIONING,NHS BARNLSEY CCG GP PRACTICE,15293467,(36.12)
Department of Health,NHS Barnsley CCG,31/12/2016,C&M-PMS Contract Value,PRC DELEGATED CO-COMMISSIONING,NHS BARNLSEY CCG GP PRACTICE,15309262,"88,321.86 "
Department of Health,NHS Barnsley CCG,31/12/2016,C&M-PMS DES Learn Dsblty Hlth Chk,PRC DELEGATED CO-COMMISSIONING,NHS BARNLSEY CCG GP PRACTICE,15309262,116.00 
Department of Health,NHS Barnsley CCG,31/12/2016,C&M-PMS Out of Hours Opt Outs,PRC DELEGATED CO-COMMISSIONING,NHS BARNLSEY CCG GP PRACTICE,15309262,"(2,243.99)"
Department of Health,NHS Barnsley CCG,31/12/2016,C&M-PMS PCO Seniority,PRC DELEGATED CO-COMMISSIONING,NHS BARNLSEY CCG GP PRACTICE,15309262,170.67 
Department of Health,NHS Barnsley CCG,31/12/2016,C&M-PMS QOF Aspiration,PRC DELEGATED CO-COMMISSIONING,NHS BARNLSEY CCG GP PRACTICE,15309262,"4,886.06 "
Department of Health,NHS Barnsley CCG,31/12/2016,C&M-PMS Contract Value,PRC DELEGATED CO-COMMISSIONING,NHS BARNLSEY CCG GP PRACTICE,15291737,"(81,939.70)"
Department of Health,NHS Barnsley CCG,31/12/2016,C&M-PMS GP Statutory Levy,PRC DELEGATED CO-COMMISSIONING,NHS BARNLSEY CCG GP PRACTICE,15291737,(360.33)
Department of Health,NHS Barnsley CCG,31/12/2016,C&M-PMS Out of Hours Opt Outs,PRC DELEGATED CO-COMMISSIONING,NHS BARNLSEY CCG GP PRACTICE,15291737,(64.54)
Department of Health,NHS Barnsley CCG,31/12/2016,C&M-PMS Voluntary Levy,PRC DELEGATED CO-COMMISSIONING,NHS BARNLSEY CCG GP PRACTICE,15291737,(63.03)
Department of Health,NHS Barnsley CCG,31/12/2016,ME-PMS GP Pension EEs-PMS,PRC DELEGATED CO-COMMISSIONING,NHS BARNLSEY CCG GP PRACTICE,15291737,"(7,931.25)"
Department of Health,NHS Barnsley CCG,31/12/2016,ME-PMS GP Pension ERs Adjs - PMS,PRC DELEGATED CO-COMMISSIONING,NHS BARNLSEY CCG GP PRACTICE,15291737,"(8,401.24)"
Department of Health,NHS Barnsley CCG,31/12/2016,C&M-PMS Contract Value,PRC DELEGATED CO-COMMISSIONING,NHS BARNLSEY CCG GP PRACTICE,15291738,"165,167.60 "
Department of Health,NHS Barnsley CCG,31/12/2016,C&M-PMS Out of Hours Opt Outs,PRC DELEGATED CO-COMMISSIONING,NHS BARNLSEY CCG GP PRACTICE,15291738,"(4,216.34)"
Department of Health,NHS Barnsley CCG,31/12/2016,C&M-PMS PCO Seniority,PRC DELEGATED CO-COMMISSIONING,NHS BARNLSEY CCG GP PRACTICE,15291738,"1,275.73 "
Department of Health,NHS Barnsley CCG,31/12/2016,C&M-PMS Prem Healthcentre Rent,PRC DELEGATED CO-COMMISSIONING,NHS BARNLSEY CCG GP PRACTICE,15291738,"19,781.47 "
Department of Health,NHS Barnsley CCG,31/12/2016,C&M-PMS Prem Notional Rent,PRC DELEGATED CO-COMMISSIONING,NHS BARNLSEY CCG GP PRACTICE,15291738,"1,833.33 "
Department of Health,NHS Barnsley CCG,31/12/2016,C&M-PMS Prem Rates,PRC DELEGATED CO-COMMISSIONING,NHS BARNLSEY CCG GP PRACTICE,15291738,270.23 
Department of Health,NHS Barnsley CCG,31/12/2016,C&M-PMS QOF Aspiration,PRC DELEGATED CO-COMMISSIONING,NHS BARNLSEY CCG GP PRACTICE,15291738,"9,268.60 "
Department of Health,NHS Barnsley CCG,31/12/2016,C&M-PMS Contract Value,PRC DELEGATED CO-COMMISSIONING,NHS BARNLSEY CCG GP PRACTICE,15291740,"28,512.10 "
Department of Health,NHS Barnsley CCG,31/12/2016,C&M-PMS Out of Hours Opt Outs,PRC DELEGATED CO-COMMISSIONING,NHS BARNLSEY CCG GP PRACTICE,15291740,(757.25)
Department of Health,NHS Barnsley CCG,31/12/2016,C&M-PMS Prem Actual Rent,PRC DELEGATED CO-COMMISSIONING,NHS BARNLSEY CCG GP PRACTICE,15291740,674.50 
Department of Health,NHS Barnsley CCG,31/12/2016,C&M-PMS QOF Aspiration,PRC DELEGATED CO-COMMISSIONING,NHS BARNLSEY CCG GP PRACTICE,15291740,"1,375.99 "
Department of Health,NHS Barnsley CCG,31/12/2016,C&M-PMS Contract Value,PRC DELEGATED CO-COMMISSIONING,NHS BARNLSEY CCG GP PRACTICE,15291741,"(42,224.08)"
Department of Health,NHS Barnsley CCG,31/12/2016,C&M-PMS GP Statutory Levy,PRC DELEGATED CO-COMMISSIONING,NHS BARNLSEY CCG GP PRACTICE,15291741,(222.71)
Department of Health,NHS Barnsley CCG,31/12/2016,C&M-PMS Out of Hours Opt Outs,PRC DELEGATED CO-COMMISSIONING,NHS BARNLSEY CCG GP PRACTICE,15291741,(72.42)
Department of Health,NHS Barnsley CCG,31/12/2016,C&M-PMS Voluntary Levy,PRC DELEGATED CO-COMMISSIONING,NHS BARNLSEY CCG GP PRACTICE,15291741,(38.96)
Department of Health,NHS Barnsley CCG,31/12/2016,ME-PMS GP Pension EEs-PMS,PRC DELEGATED CO-COMMISSIONING,NHS BARNLSEY CCG GP PRACTICE,15291741,"(3,522.50)"
Department of Health,NHS Barnsley CCG,31/12/2016,ME-PMS GP Pension ERs Adjs - PMS,PRC DELEGATED CO-COMMISSIONING,NHS BARNLSEY CCG GP PRACTICE,15291741,"(3,598.83)"
Department of Health,NHS Barnsley CCG,31/12/2016,C&M-PMS Contract Value,PRC DELEGATED CO-COMMISSIONING,NHS BARNLSEY CCG GP PRACTICE,15291742,"89,936.01 "
Department of Health,NHS Barnsley CCG,31/12/2016,C&M-PMS Out of Hours Opt Outs,PRC DELEGATED CO-COMMISSIONING,NHS BARNLSEY CCG GP PRACTICE,15291742,"(2,381.67)"
Department of Health,NHS Barnsley CCG,31/12/2016,C&M-PMS PCO Seniority,PRC DELEGATED CO-COMMISSIONING,NHS BARNLSEY CCG GP PRACTICE,15291742,"3,480.46 "
Department of Health,NHS Barnsley CCG,31/12/2016,C&M-PMS Prem Healthcentre Rent,PRC DELEGATED CO-COMMISSIONING,NHS BARNLSEY CCG GP PRACTICE,15291742,"21,557.03 "
Department of Health,NHS Barnsley CCG,31/12/2016,C&M-PMS QOF Aspiration,PRC DELEGATED CO-COMMISSIONING,NHS BARNLSEY CCG GP PRACTICE,15291742,"4,879.28 "
Department of Health,NHS Barnsley CCG,31/12/2016,C&M-GMS DES Learn Dsblty Hlth Chk,PRC DELEGATED CO-COMMISSIONING,NHS BARNLSEY CCG GP PRACTICE,15473534,"2,436.00 "
Department of Health,NHS Barnsley CCG,31/12/2016,C&M-GMS DES Minor Surgery,PRC DELEGATED CO-COMMISSIONING,NHS BARNLSEY CCG GP PRACTICE,15473534,"2,898.16 "
Department of Health,NHS Barnsley CCG,31/12/2016,C&M-GMS Global Sum,PRC DELEGATED CO-COMMISSIONING,NHS BARNLSEY CCG GP PRACTICE,15473534,"66,796.97 "
Department of Health,NHS Barnsley CCG,31/12/2016,C&M-GMS PCO Seniority,PRC DELEGATED CO-COMMISSIONING,NHS BARNLSEY CCG GP PRACTICE,15473534,"3,947.94 "
Department of Health,NHS Barnsley CCG,31/12/2016,C&M-GMS Prem Notional Rent,PRC DELEGATED CO-COMMISSIONING,NHS BARNLSEY CCG GP PRACTICE,15473534,"4,483.33 "
Department of Health,NHS Barnsley CCG,31/12/2016,C&M-GMS Prem Rates,PRC DELEGATED CO-COMMISSIONING,NHS BARNLSEY CCG GP PRACTICE,15473534,"1,751.93 "
Department of Health,NHS Barnsley CCG,31/12/2016,C&M-GMS QOF Aspiration,PRC DELEGATED CO-COMMISSIONING,NHS BARNLSEY CCG GP PRACTICE,15473534,"8,046.05 "
Department of Health,NHS Barnsley CCG,31/12/2016,C&M-GMS DES Minor Surgery,PRC DELEGATED CO-COMMISSIONING,NHS BARNLSEY CCG GP PRACTICE,15473536,"3,153.88 "
Department of Health,NHS Barnsley CCG,31/12/2016,C&M-GMS Global Sum,PRC DELEGATED CO-COMMISSIONING,NHS BARNLSEY CCG GP PRACTICE,15473536,"61,935.19 "
Department of Health,NHS Barnsley CCG,31/12/2016,C&M-GMS PCO Seniority,PRC DELEGATED CO-COMMISSIONING,NHS BARNLSEY CCG GP PRACTICE,15473536,"2,235.58 "
Department of Health,NHS Barnsley CCG,31/12/2016,C&M-GMS Prem Actual Rent,PRC DELEGATED CO-COMMISSIONING,NHS BARNLSEY CCG GP PRACTICE,15473536,"4,375.00 "
Department of Health,NHS Barnsley CCG,31/12/2016,C&M-GMS Prem Healthcentre Rent,PRC DELEGATED CO-COMMISSIONING,NHS BARNLSEY CCG GP PRACTICE,15473536,"3,289.55 "
Department of Health,NHS Barnsley CCG,31/12/2016,C&M-GMS Prem Rates,PRC DELEGATED CO-COMMISSIONING,NHS BARNLSEY CCG GP PRACTICE,15473536,677.60 
Department of Health,NHS Barnsley CCG,31/12/2016,C&M-GMS Prem Water Rates,PRC DELEGATED CO-COMMISSIONING,NHS BARNLSEY CCG GP PRACTICE,15473536,123.09 
Department of Health,NHS Barnsley CCG,31/12/2016,C&M-GMS QOF Aspiration,PRC DELEGATED CO-COMMISSIONING,NHS BARNLSEY CCG GP PRACTICE,15473536,"6,884.36 "
Department of Health,NHS Barnsley CCG,31/12/2016,C&M-PMS Contract Value,PRC DELEGATED CO-COMMISSIONING,NHS BARNLSEY CCG GP PRACTICE,15291745,"(108,785.34)"
Department of Health,NHS Barnsley CCG,31/12/2016,C&M-PMS GP Statutory Levy,PRC DELEGATED CO-COMMISSIONING,NHS BARNLSEY CCG GP PRACTICE,15291745,(556.78)
Department of Health,NHS Barnsley CCG,31/12/2016,C&M-PMS Out of Hours Opt Outs,PRC DELEGATED CO-COMMISSIONING,NHS BARNLSEY CCG GP PRACTICE,15291745,(133.18)
Department of Health,NHS Barnsley CCG,31/12/2016,C&M-PMS Voluntary Levy,PRC DELEGATED CO-COMMISSIONING,NHS BARNLSEY CCG GP PRACTICE,15291745,(97.39)
Department of Health,NHS Barnsley CCG,31/12/2016,ME - PMS TPS Added Years Adj EEs,PRC DELEGATED CO-COMMISSIONING,NHS BARNLSEY CCG GP PRACTICE,15291745,(610.96)
Department of Health,NHS Barnsley CCG,31/12/2016,ME-PMS GP Pension EEs-PMS,PRC DELEGATED CO-COMMISSIONING,NHS BARNLSEY CCG GP PRACTICE,15291745,"(13,675.09)"
Department of Health,NHS Barnsley CCG,31/12/2016,ME-PMS GP Pension ERs Adjs - PMS,PRC DELEGATED CO-COMMISSIONING,NHS BARNLSEY CCG GP PRACTICE,15291745,"(14,201.82)"
Department of Health,NHS Barnsley CCG,31/12/2016,C&M-PMS Baseline Adjustment,PRC DELEGATED CO-COMMISSIONING,NHS BARNLSEY CCG GP PRACTICE,15291746,188.08 
Department of Health,NHS Barnsley CCG,31/12/2016,C&M-PMS Contract Value,PRC DELEGATED CO-COMMISSIONING,NHS BARNLSEY CCG GP PRACTICE,15291746,"228,450.10 "
Department of Health,NHS Barnsley CCG,31/12/2016,C&M-PMS DES Learn Dsblty Hlth Chk,PRC DELEGATED CO-COMMISSIONING,NHS BARNLSEY CCG GP PRACTICE,15291746,696.00 
Department of Health,NHS Barnsley CCG,31/12/2016,C&M-PMS Out of Hours Opt Outs,PRC DELEGATED CO-COMMISSIONING,NHS BARNLSEY CCG GP PRACTICE,15291746,"(5,741.48)"
Department of Health,NHS Barnsley CCG,31/12/2016,C&M-PMS PCO Seniority,PRC DELEGATED CO-COMMISSIONING,NHS BARNLSEY CCG GP PRACTICE,15291746,"4,070.10 "
Department of Health,NHS Barnsley CCG,31/12/2016,C&M-PMS Prem Notional Rent,PRC DELEGATED CO-COMMISSIONING,NHS BARNLSEY CCG GP PRACTICE,15291746,"6,333.33 "
Department of Health,NHS Barnsley CCG,31/12/2016,C&M-PMS Prem Rates,PRC DELEGATED CO-COMMISSIONING,NHS BARNLSEY CCG GP PRACTICE,15291746,"3,043.55 "
Department of Health,NHS Barnsley CCG,31/12/2016,C&M-PMS QOF Aspiration,PRC DELEGATED CO-COMMISSIONING,NHS BARNLSEY CCG GP PRACTICE,15291746,"13,009.21 "
Department of Health,NHS Barnsley CCG,31/12/2016,C&M-PMS Cost of Drugs -Dispensing,LOCAL ENHANCED SERVICES,NHS BARNLSEY CCG GP PRACTICE,15493386,"(90,303.36)"
Department of Health,NHS Barnsley CCG,31/12/2016,C&M-PMS Prsc Chrgs Cll&Rmttd by GPs,PRC DELEGATED CO-COMMISSIONING,NHS BARNLSEY CCG GP PRACTICE,15493386,"(5,224.80)"
Department of Health,NHS Barnsley CCG,31/12/2016,C&M-PMS Cost of Drugs -Dispensing,LOCAL ENHANCED SERVICES,NHS BARNLSEY CCG GP PRACTICE,15493387,"156,447.57 "
Department of Health,NHS Barnsley CCG,31/12/2016,C&M-PMS Prof fees Dispensing,PRC DELEGATED CO-COMMISSIONING,NHS BARNLSEY CCG GP PRACTICE,15493387,"31,041.87 "
Department of Health,NHS Barnsley CCG,31/12/2016,C&M-PMS Prsc Chrgs Cll&Rmttd by GPs,LOCAL ENHANCED SERVICES,NHS BARNLSEY CCG GP PRACTICE,15493387,"5,224.80 "
Department of Health,NHS Barnsley CCG,31/12/2016,C&M-GMS DES UNPLANNED ADMISSIONS,PRC DELEGATED CO-COMMISSIONING,NHS BARNLSEY CCG GP PRACTICE,15473762,"2,193.73 "
Department of Health,NHS Barnsley CCG,31/12/2016,C&M-GMS Global Sum,PRC DELEGATED CO-COMMISSIONING,NHS BARNLSEY CCG GP PRACTICE,15473762,"19,050.22 "
Department of Health,NHS Barnsley CCG,31/12/2016,C&M-GMS MPIG Correction Factor,PRC DELEGATED CO-COMMISSIONING,NHS BARNLSEY CCG GP PRACTICE,15473762,809.59 
Department of Health,NHS Barnsley CCG,31/12/2016,C&M-GMS PCO Seniority,PRC DELEGATED CO-COMMISSIONING,NHS BARNLSEY CCG GP PRACTICE,15473762,895.74 
Department of Health,NHS Barnsley CCG,31/12/2016,C&M-GMS Prem Healthcentre Rent,PRC DELEGATED CO-COMMISSIONING,NHS BARNLSEY CCG GP PRACTICE,15473762,"1,520.42 "
Department of Health,NHS Barnsley CCG,31/12/2016,C&M-GMS QOF Aspiration,PRC DELEGATED CO-COMMISSIONING,NHS BARNLSEY CCG GP PRACTICE,15473762,"2,185.46 "
Department of Health,NHS Barnsley CCG,31/12/2016,C&M-GMS Global Sum,PRC DELEGATED CO-COMMISSIONING,NHS BARNLSEY CCG GP PRACTICE,15473538,"37,142.76 "
Department of Health,NHS Barnsley CCG,31/12/2016,C&M-GMS PCO Seniority,PRC DELEGATED CO-COMMISSIONING,NHS BARNLSEY CCG GP PRACTICE,15473538,254.72 
Department of Health,NHS Barnsley CCG,31/12/2016,C&M-GMS Prem Notional Rent,PRC DELEGATED CO-COMMISSIONING,NHS BARNLSEY CCG GP PRACTICE,15473538,"1,416.67 "
Department of Health,NHS Barnsley CCG,31/12/2016,C&M-GMS Prem Rates,PRC DELEGATED CO-COMMISSIONING,NHS BARNLSEY CCG GP PRACTICE,15473538,"1,042.62 "
Department of Health,NHS Barnsley CCG,31/12/2016,C&M-GMS QOF Aspiration,PRC DELEGATED CO-COMMISSIONING,NHS BARNLSEY CCG GP PRACTICE,15473538,"3,898.31 "
Department of Health,NHS Barnsley CCG,31/12/2016,C&M-PMS Contract Value,PRC DELEGATED CO-COMMISSIONING,NHS BARNLSEY CCG GP PRACTICE,15291743,"(39,672.31)"
Department of Health,NHS Barnsley CCG,31/12/2016,C&M-PMS GP Statutory Levy,PRC DELEGATED CO-COMMISSIONING,NHS BARNLSEY CCG GP PRACTICE,15291743,(158.52)
Department of Health,NHS Barnsley CCG,31/12/2016,C&M-PMS Out of Hours Opt Outs,PRC DELEGATED CO-COMMISSIONING,NHS BARNLSEY CCG GP PRACTICE,15291743,(41.29)
Department of Health,NHS Barnsley CCG,31/12/2016,C&M-PMS Prem Healthcentre Rent,PRC DELEGATED CO-COMMISSIONING,NHS BARNLSEY CCG GP PRACTICE,15291743,(0.16)
Department of Health,NHS Barnsley CCG,31/12/2016,C&M-PMS Voluntary Levy,PRC DELEGATED CO-COMMISSIONING,NHS BARNLSEY CCG GP PRACTICE,15291743,(27.73)
Department of Health,NHS Barnsley CCG,31/12/2016,ME-PMS GP Pension EEs-PMS,PRC DELEGATED CO-COMMISSIONING,NHS BARNLSEY CCG GP PRACTICE,15291743,"(1,350.92)"
Department of Health,NHS Barnsley CCG,31/12/2016,ME-PMS GP Pension ERs Adjs - PMS,PRC DELEGATED CO-COMMISSIONING,NHS BARNLSEY CCG GP PRACTICE,15291743,"(1,332.28)"
Department of Health,NHS Barnsley CCG,31/12/2016,C&M-PMS Baseline Adjustment,PRC DELEGATED CO-COMMISSIONING,NHS BARNLSEY CCG GP PRACTICE,15291744,"5,074.17 "
Department of Health,NHS Barnsley CCG,31/12/2016,C&M-PMS Contract Value,PRC DELEGATED CO-COMMISSIONING,NHS BARNLSEY CCG GP PRACTICE,15291744,"77,421.83 "
Department of Health,NHS Barnsley CCG,31/12/2016,C&M-PMS Out of Hours Opt Outs,PRC DELEGATED CO-COMMISSIONING,NHS BARNLSEY CCG GP PRACTICE,15291744,"(1,806.05)"
Department of Health,NHS Barnsley CCG,31/12/2016,C&M-PMS PCO Seniority,PRC DELEGATED CO-COMMISSIONING,NHS BARNLSEY CCG GP PRACTICE,15291744,"1,669.69 "
Department of Health,NHS Barnsley CCG,31/12/2016,C&M-PMS Prem Healthcentre Rent,PRC DELEGATED CO-COMMISSIONING,NHS BARNLSEY CCG GP PRACTICE,15291744,"2,989.68 "
Department of Health,NHS Barnsley CCG,31/12/2016,C&M-PMS Prem Notional Rent,PRC DELEGATED CO-COMMISSIONING,NHS BARNLSEY CCG GP PRACTICE,15291744,"7,833.33 "
Department of Health,NHS Barnsley CCG,31/12/2016,C&M-PMS Prem Rates,PRC DELEGATED CO-COMMISSIONING,NHS BARNLSEY CCG GP PRACTICE,15291744,"2,414.27 "
Department of Health,NHS Barnsley CCG,31/12/2016,C&M-PMS QOF Aspiration,PRC DELEGATED CO-COMMISSIONING,NHS BARNLSEY CCG GP PRACTICE,15291744,"2,466.00 "
Department of Health,NHS Barnsley CCG,31/12/2016,C&M-GMS DES Learn Dsblty Hlth Chk,PRC DELEGATED CO-COMMISSIONING,NHS BARNLSEY CCG GP PRACTICE,15473542,928.00 
Department of Health,NHS Barnsley CCG,31/12/2016,C&M-GMS DES Minor Surgery,PRC DELEGATED CO-COMMISSIONING,NHS BARNLSEY CCG GP PRACTICE,15473542,"2,514.58 "
Department of Health,NHS Barnsley CCG,31/12/2016,C&M-GMS DES UNPLANNED ADMISSIONS,PRC DELEGATED CO-COMMISSIONING,NHS BARNLSEY CCG GP PRACTICE,15473542,"10,131.66 "
Department of Health,NHS Barnsley CCG,31/12/2016,C&M-GMS Global Sum,PRC DELEGATED CO-COMMISSIONING,NHS BARNLSEY CCG GP PRACTICE,15473542,"95,226.95 "
Department of Health,NHS Barnsley CCG,31/12/2016,C&M-GMS PCO Seniority,PRC DELEGATED CO-COMMISSIONING,NHS BARNLSEY CCG GP PRACTICE,15473542,"9,310.07 "
Department of Health,NHS Barnsley CCG,31/12/2016,C&M-GMS Prem Notional Rent,PRC DELEGATED CO-COMMISSIONING,NHS BARNLSEY CCG GP PRACTICE,15473542,"6,208.33 "
Department of Health,NHS Barnsley CCG,31/12/2016,C&M-GMS Prem Rates,PRC DELEGATED CO-COMMISSIONING,NHS BARNLSEY CCG GP PRACTICE,15473542,"2,078.16 "
Department of Health,NHS Barnsley CCG,31/12/2016,C&M-GMS QOF Aspiration,PRC DELEGATED CO-COMMISSIONING,NHS BARNLSEY CCG GP PRACTICE,15473542,"10,127.48 "
Department of Health,NHS Barnsley CCG,31/12/2016,C&M-GMS Cost of Drugs -Dispensing,LOCAL ENHANCED SERVICES,NHS BARNLSEY CCG GP PRACTICE,15493391,"28,308.65 "
Department of Health,NHS Barnsley CCG,31/12/2016,C&M-GMS Prof Fees Dispensing,PRC DELEGATED CO-COMMISSIONING,NHS BARNLSEY CCG GP PRACTICE,15493391,"6,370.31 "
Department of Health,NHS Barnsley CCG,31/12/2016,C&M-GMS PrscrptnChrgsColl&RmttdbyGP,LOCAL ENHANCED SERVICES,NHS BARNLSEY CCG GP PRACTICE,15493391,117.60 
Department of Health,NHS Barnsley CCG,31/12/2016,C&M-PMS Contract Value,PRC DELEGATED CO-COMMISSIONING,NHS BARNLSEY CCG GP PRACTICE,15291747,"(83,041.03)"
Department of Health,NHS Barnsley CCG,31/12/2016,C&M-PMS GP Statutory Levy,PRC DELEGATED CO-COMMISSIONING,NHS BARNLSEY CCG GP PRACTICE,15291747,(398.26)
Department of Health,NHS Barnsley CCG,31/12/2016,C&M-PMS Out of Hours Opt Outs,PRC DELEGATED CO-COMMISSIONING,NHS BARNLSEY CCG GP PRACTICE,15291747,(79.34)
Department of Health,NHS Barnsley CCG,31/12/2016,C&M-PMS Voluntary Levy,PRC DELEGATED CO-COMMISSIONING,NHS BARNLSEY CCG GP PRACTICE,15291747,(69.66)
Department of Health,NHS Barnsley CCG,31/12/2016,ME - PMS TPS Added Years Adj EEs,PRC DELEGATED CO-COMMISSIONING,NHS BARNLSEY CCG GP PRACTICE,15291747,(585.27)
Department of Health,NHS Barnsley CCG,31/12/2016,ME-PMS GP Pension EEs-PMS,PRC DELEGATED CO-COMMISSIONING,NHS BARNLSEY CCG GP PRACTICE,15291747,"(7,539.34)"
Department of Health,NHS Barnsley CCG,31/12/2016,ME-PMS GP Pension ERs Adjs - PMS,PRC DELEGATED CO-COMMISSIONING,NHS BARNLSEY CCG GP PRACTICE,15291747,"(7,678.24)"
Department of Health,NHS Barnsley CCG,31/12/2016,C&M-PMS Contract Value,PRC DELEGATED CO-COMMISSIONING,NHS BARNLSEY CCG GP PRACTICE,15291748,"174,327.14 "
Department of Health,NHS Barnsley CCG,31/12/2016,C&M-PMS DES UNPLANNED ADMISSIONS,PRC DELEGATED CO-COMMISSIONING,NHS BARNLSEY CCG GP PRACTICE,15291748,"9,237.69 "
Department of Health,NHS Barnsley CCG,31/12/2016,C&M-PMS Out of Hours Opt Outs,PRC DELEGATED CO-COMMISSIONING,NHS BARNLSEY CCG GP PRACTICE,15291748,"(4,616.05)"
Department of Health,NHS Barnsley CCG,31/12/2016,C&M-PMS PCO Seniority,PRC DELEGATED CO-COMMISSIONING,NHS BARNLSEY CCG GP PRACTICE,15291748,"3,804.83 "
Department of Health,NHS Barnsley CCG,31/12/2016,C&M-PMS Prem Notional Rent,PRC DELEGATED CO-COMMISSIONING,NHS BARNLSEY CCG GP PRACTICE,15291748,"13,500.00 "
Department of Health,NHS Barnsley CCG,31/12/2016,C&M-PMS Prem Rates,PRC DELEGATED CO-COMMISSIONING,NHS BARNLSEY CCG GP PRACTICE,15291748,520.30 
Department of Health,NHS Barnsley CCG,31/12/2016,C&M-PMS QOF Aspiration,PRC DELEGATED CO-COMMISSIONING,NHS BARNLSEY CCG GP PRACTICE,15291748,"9,037.78 "
Department of Health,NHS Barnsley CCG,31/12/2016,C&M-GMS DES Minor Surgery,PRC DELEGATED CO-COMMISSIONING,NHS BARNLSEY CCG GP PRACTICE,15473540,"4,048.90 "
Department of Health,NHS Barnsley CCG,31/12/2016,C&M-GMS DES UNPLANNED ADMISSIONS,PRC DELEGATED CO-COMMISSIONING,NHS BARNLSEY CCG GP PRACTICE,15473540,"8,541.61 "
Department of Health,NHS Barnsley CCG,31/12/2016,C&M-GMS Global Sum,PRC DELEGATED CO-COMMISSIONING,NHS BARNLSEY CCG GP PRACTICE,15473540,"85,961.05 "
Department of Health,NHS Barnsley CCG,31/12/2016,C&M-GMS PCO Seniority,PRC DELEGATED CO-COMMISSIONING,NHS BARNLSEY CCG GP PRACTICE,15473540,"3,862.26 "
Department of Health,NHS Barnsley CCG,31/12/2016,C&M-GMS Prem Healthcentre Rent,PRC DELEGATED CO-COMMISSIONING,NHS BARNLSEY CCG GP PRACTICE,15473540,"31,619.95 "
Department of Health,NHS Barnsley CCG,31/12/2016,C&M-GMS QOF Aspiration,PRC DELEGATED CO-COMMISSIONING,NHS BARNLSEY CCG GP PRACTICE,15473540,"9,007.62 "
Department of Health,NHS Barnsley CCG,31/12/2016,C&M-GMS DES Minor Surgery,PRC DELEGATED CO-COMMISSIONING,NHS BARNLSEY CCG GP PRACTICE,15473544,724.54 
Department of Health,NHS Barnsley CCG,31/12/2016,C&M-GMS Global Sum,PRC DELEGATED CO-COMMISSIONING,NHS BARNLSEY CCG GP PRACTICE,15473544,"70,936.40 "
Department of Health,NHS Barnsley CCG,31/12/2016,C&M-GMS PCO Seniority,PRC DELEGATED CO-COMMISSIONING,NHS BARNLSEY CCG GP PRACTICE,15473544,"1,764.58 "
Department of Health,NHS Barnsley CCG,31/12/2016,C&M-GMS Prem Rates,PRC DELEGATED CO-COMMISSIONING,NHS BARNLSEY CCG GP PRACTICE,15473544,"2,534.70 "
Department of Health,NHS Barnsley CCG,31/12/2016,C&M-GMS QOF Aspiration,PRC DELEGATED CO-COMMISSIONING,NHS BARNLSEY CCG GP PRACTICE,15473544,"9,545.99 "
Department of Health,NHS Barnsley CCG,31/12/2016,C&M-PMS Contract Value,PRC DELEGATED CO-COMMISSIONING,NHS BARNLSEY CCG GP PRACTICE,15291749,"(74,620.84)"
Department of Health,NHS Barnsley CCG,31/12/2016,C&M-PMS GP Statutory Levy,PRC DELEGATED CO-COMMISSIONING,NHS BARNLSEY CCG GP PRACTICE,15291749,(398.36)
Department of Health,NHS Barnsley CCG,31/12/2016,C&M-PMS Out of Hours Opt Outs,PRC DELEGATED CO-COMMISSIONING,NHS BARNLSEY CCG GP PRACTICE,15291749,(291.23)
Department of Health,NHS Barnsley CCG,31/12/2016,C&M-PMS Voluntary Levy,PRC DELEGATED CO-COMMISSIONING,NHS BARNLSEY CCG GP PRACTICE,15291749,(69.68)
Department of Health,NHS Barnsley CCG,31/12/2016,ME - PMS TPS Added Years Adj EEs,PRC DELEGATED CO-COMMISSIONING,NHS BARNLSEY CCG GP PRACTICE,15291749,(266.67)
Department of Health,NHS Barnsley CCG,31/12/2016,ME-PMS GP Pension EEs-PMS,PRC DELEGATED CO-COMMISSIONING,NHS BARNLSEY CCG GP PRACTICE,15291749,"(7,526.25)"
Department of Health,NHS Barnsley CCG,31/12/2016,ME-PMS GP Pension ERs Adjs - PMS,PRC DELEGATED CO-COMMISSIONING,NHS BARNLSEY CCG GP PRACTICE,15291749,"(8,186.76)"
Department of Health,NHS Barnsley CCG,31/12/2016,C&M-PMS Contract Value,PRC DELEGATED CO-COMMISSIONING,NHS BARNLSEY CCG GP PRACTICE,15291750,"162,103.02 "
Department of Health,NHS Barnsley CCG,31/12/2016,C&M-PMS Out of Hours Opt Outs,PRC DELEGATED CO-COMMISSIONING,NHS BARNLSEY CCG GP PRACTICE,15291750,"(4,208.83)"
Department of Health,NHS Barnsley CCG,31/12/2016,C&M-PMS PCO Seniority,PRC DELEGATED CO-COMMISSIONING,NHS BARNLSEY CCG GP PRACTICE,15291750,"4,618.15 "
Department of Health,NHS Barnsley CCG,31/12/2016,C&M-PMS Prem Notional Rent,PRC DELEGATED CO-COMMISSIONING,NHS BARNLSEY CCG GP PRACTICE,15291750,"8,125.00 "
Department of Health,NHS Barnsley CCG,31/12/2016,C&M-PMS Prem Rates,PRC DELEGATED CO-COMMISSIONING,NHS BARNLSEY CCG GP PRACTICE,15291750,951.94 
Department of Health,NHS Barnsley CCG,31/12/2016,C&M-PMS QOF Aspiration,PRC DELEGATED CO-COMMISSIONING,NHS BARNLSEY CCG GP PRACTICE,15291750,"9,498.69 "
Department of Health,NHS Barnsley CCG,31/12/2016,C&M-GMS Global Sum,PRC DELEGATED CO-COMMISSIONING,NHS BARNLSEY CCG GP PRACTICE,15473546,"22,026.09 "
Department of Health,NHS Barnsley CCG,31/12/2016,C&M-GMS PCO Seniority,PRC DELEGATED CO-COMMISSIONING,NHS BARNLSEY CCG GP PRACTICE,15473546,"2,163.58 "
Department of Health,NHS Barnsley CCG,31/12/2016,C&M-GMS Prem Notional Rent,PRC DELEGATED CO-COMMISSIONING,NHS BARNLSEY CCG GP PRACTICE,15473546,"1,572.92 "
Department of Health,NHS Barnsley CCG,31/12/2016,C&M-GMS Prem Rates,PRC DELEGATED CO-COMMISSIONING,NHS BARNLSEY CCG GP PRACTICE,15473546,433.58 
Department of Health,NHS Barnsley CCG,31/12/2016,C&M-GMS QOF Aspiration,PRC DELEGATED CO-COMMISSIONING,NHS BARNLSEY CCG GP PRACTICE,15473546,"2,279.92 "
Department of Health,NHS Barnsley CCG,31/12/2016,C&M-PMS Contract Value,PRC DELEGATED CO-COMMISSIONING,NHS BARNLSEY CCG GP PRACTICE,15291751,"(78,437.25)"
Department of Health,NHS Barnsley CCG,31/12/2016,C&M-PMS GP Statutory Levy,PRC DELEGATED CO-COMMISSIONING,NHS BARNLSEY CCG GP PRACTICE,15291751,(375.63)
Department of Health,NHS Barnsley CCG,31/12/2016,C&M-PMS Out of Hours Opt Outs,PRC DELEGATED CO-COMMISSIONING,NHS BARNLSEY CCG GP PRACTICE,15291751,(196.24)
Department of Health,NHS Barnsley CCG,31/12/2016,C&M-PMS Voluntary Levy,PRC DELEGATED CO-COMMISSIONING,NHS BARNLSEY CCG GP PRACTICE,15291751,(65.70)
Department of Health,NHS Barnsley CCG,31/12/2016,ME-PMS GP Pension EEs-PMS,PRC DELEGATED CO-COMMISSIONING,NHS BARNLSEY CCG GP PRACTICE,15291751,"(6,209.58)"
Department of Health,NHS Barnsley CCG,31/12/2016,ME-PMS GP Pension ERs Adjs - PMS,PRC DELEGATED CO-COMMISSIONING,NHS BARNLSEY CCG GP PRACTICE,15291751,"(6,542.26)"
Department of Health,NHS Barnsley CCG,31/12/2016,C&M-PMS Contract Value,PRC DELEGATED CO-COMMISSIONING,NHS BARNLSEY CCG GP PRACTICE,15291752,"168,267.19 "
Department of Health,NHS Barnsley CCG,31/12/2016,C&M-PMS Out of Hours Opt Outs,PRC DELEGATED CO-COMMISSIONING,NHS BARNLSEY CCG GP PRACTICE,15291752,"(4,424.42)"
Department of Health,NHS Barnsley CCG,31/12/2016,C&M-PMS PCO Seniority,PRC DELEGATED CO-COMMISSIONING,NHS BARNLSEY CCG GP PRACTICE,15291752,"1,637.42 "
Department of Health,NHS Barnsley CCG,31/12/2016,C&M-PMS Prem Actual Rent,PRC DELEGATED CO-COMMISSIONING,NHS BARNLSEY CCG GP PRACTICE,15291752,"12,708.33 "
Department of Health,NHS Barnsley CCG,31/12/2016,C&M-PMS Prem Rates,PRC DELEGATED CO-COMMISSIONING,NHS BARNLSEY CCG GP PRACTICE,15291752,"2,153.66 "
Department of Health,NHS Barnsley CCG,31/12/2016,C&M-PMS QOF Aspiration,PRC DELEGATED CO-COMMISSIONING,NHS BARNLSEY CCG GP PRACTICE,15291752,"9,731.41 "
Department of Health,NHS Barnsley CCG,31/12/2016,C&M-PMS Contract Value,PRC DELEGATED CO-COMMISSIONING,NHS BARNLSEY CCG GP PRACTICE,15291753,"(67,727.16)"
Department of Health,NHS Barnsley CCG,31/12/2016,C&M-PMS GP Statutory Levy,PRC DELEGATED CO-COMMISSIONING,NHS BARNLSEY CCG GP PRACTICE,15291753,(357.60)
Department of Health,NHS Barnsley CCG,31/12/2016,C&M-PMS Out of Hours Opt Outs,PRC DELEGATED CO-COMMISSIONING,NHS BARNLSEY CCG GP PRACTICE,15291753,(190.76)
Department of Health,NHS Barnsley CCG,31/12/2016,ME-PMS GP Pension EEs-PMS,PRC DELEGATED CO-COMMISSIONING,NHS BARNLSEY CCG GP PRACTICE,15291753,"(2,670.60)"
Department of Health,NHS Barnsley CCG,31/12/2016,ME-PMS GP Pension ERs Adjs - PMS,PRC DELEGATED CO-COMMISSIONING,NHS BARNLSEY CCG GP PRACTICE,15291753,"(2,871.95)"
Department of Health,NHS Barnsley CCG,31/12/2016,C&M-PMS Contract Value,PRC DELEGATED CO-COMMISSIONING,NHS BARNLSEY CCG GP PRACTICE,15291754,"145,696.13 "
Department of Health,NHS Barnsley CCG,31/12/2016,C&M-PMS Out of Hours Opt Outs,PRC DELEGATED CO-COMMISSIONING,NHS BARNLSEY CCG GP PRACTICE,15291754,"(3,820.17)"
Department of Health,NHS Barnsley CCG,31/12/2016,C&M-PMS PCO Seniority,PRC DELEGATED CO-COMMISSIONING,NHS BARNLSEY CCG GP PRACTICE,15291754,"1,716.37 "
Department of Health,NHS Barnsley CCG,31/12/2016,C&M-PMS Prem Actual Rent,PRC DELEGATED CO-COMMISSIONING,NHS BARNLSEY CCG GP PRACTICE,15291754,"8,566.67 "
Department of Health,NHS Barnsley CCG,31/12/2016,C&M-PMS Prem Rates,PRC DELEGATED CO-COMMISSIONING,NHS BARNLSEY CCG GP PRACTICE,15291754,"1,428.87 "
Department of Health,NHS Barnsley CCG,31/12/2016,C&M-PMS QOF Aspiration,PRC DELEGATED CO-COMMISSIONING,NHS BARNLSEY CCG GP PRACTICE,15291754,"7,252.24 "
Department of Health,NHS Barnsley CCG,31/12/2016,C&M-GMS DES Minor Surgery,PRC DELEGATED CO-COMMISSIONING,NHS BARNLSEY CCG GP PRACTICE,15473548,852.40 
Department of Health,NHS Barnsley CCG,31/12/2016,C&M-GMS Global Sum,PRC DELEGATED CO-COMMISSIONING,NHS BARNLSEY CCG GP PRACTICE,15473548,"52,069.41 "
Department of Health,NHS Barnsley CCG,31/12/2016,C&M-GMS PCO Seniority,PRC DELEGATED CO-COMMISSIONING,NHS BARNLSEY CCG GP PRACTICE,15473548,"3,444.07 "
Department of Health,NHS Barnsley CCG,31/12/2016,C&M-GMS Prem Healthcentre Rent,PRC DELEGATED CO-COMMISSIONING,NHS BARNLSEY CCG GP PRACTICE,15473548,"20,522.19 "
Department of Health,NHS Barnsley CCG,31/12/2016,C&M-GMS QOF Aspiration,PRC DELEGATED CO-COMMISSIONING,NHS BARNLSEY CCG GP PRACTICE,15473548,"5,719.94 "
Department of Health,NHS Barnsley CCG,31/12/2016,C&M-PMS Contract Value,PRC DELEGATED CO-COMMISSIONING,NHS BARNLSEY CCG GP PRACTICE,15291755,"(85,315.59)"
Department of Health,NHS Barnsley CCG,31/12/2016,C&M-PMS GP Statutory Levy,PRC DELEGATED CO-COMMISSIONING,NHS BARNLSEY CCG GP PRACTICE,15291755,(439.29)
Department of Health,NHS Barnsley CCG,31/12/2016,C&M-PMS Out of Hours Opt Outs,PRC DELEGATED CO-COMMISSIONING,NHS BARNLSEY CCG GP PRACTICE,15291755,(94.51)
Department of Health,NHS Barnsley CCG,31/12/2016,C&M-PMS Voluntary Levy,PRC DELEGATED CO-COMMISSIONING,NHS BARNLSEY CCG GP PRACTICE,15291755,(76.84)
Department of Health,NHS Barnsley CCG,31/12/2016,ME-PMS GP Pension EEs-PMS,PRC DELEGATED CO-COMMISSIONING,NHS BARNLSEY CCG GP PRACTICE,15291755,"(6,753.36)"
Department of Health,NHS Barnsley CCG,31/12/2016,ME-PMS GP Pension ERs Adjs - PMS,PRC DELEGATED CO-COMMISSIONING,NHS BARNLSEY CCG GP PRACTICE,15291755,"(7,565.93)"
Department of Health,NHS Barnsley CCG,31/12/2016,C&M-PMS Contract Value,PRC DELEGATED CO-COMMISSIONING,NHS BARNLSEY CCG GP PRACTICE,15291756,"179,313.57 "
Department of Health,NHS Barnsley CCG,31/12/2016,C&M-PMS Out of Hours Opt Outs,PRC DELEGATED CO-COMMISSIONING,NHS BARNLSEY CCG GP PRACTICE,15291756,"(4,740.22)"
Department of Health,NHS Barnsley CCG,31/12/2016,C&M-PMS PCO Seniority,PRC DELEGATED CO-COMMISSIONING,NHS BARNLSEY CCG GP PRACTICE,15291756,"5,819.92 "
Department of Health,NHS Barnsley CCG,31/12/2016,C&M-PMS Prem Rates,PRC DELEGATED CO-COMMISSIONING,NHS BARNLSEY CCG GP PRACTICE,15291756,"2,348.33 "
Department of Health,NHS Barnsley CCG,31/12/2016,C&M-PMS QOF Aspiration,PRC DELEGATED CO-COMMISSIONING,NHS BARNLSEY CCG GP PRACTICE,15291756,"11,102.10 "
Department of Health,NHS Barnsley CCG,31/12/2016,C&M-GMS Global Sum,PRC DELEGATED CO-COMMISSIONING,NHS BARNLSEY CCG GP PRACTICE,15473552,"42,310.18 "
Department of Health,NHS Barnsley CCG,31/12/2016,C&M-GMS PCO Seniority,PRC DELEGATED CO-COMMISSIONING,NHS BARNLSEY CCG GP PRACTICE,15473552,"3,676.70 "
Department of Health,NHS Barnsley CCG,31/12/2016,C&M-GMS Prem Notional Rent,PRC DELEGATED CO-COMMISSIONING,NHS BARNLSEY CCG GP PRACTICE,15473552,"2,541.67 "
Department of Health,NHS Barnsley CCG,31/12/2016,C&M-GMS Prem Rates,PRC DELEGATED CO-COMMISSIONING,NHS BARNLSEY CCG GP PRACTICE,15473552,973.29 
Department of Health,NHS Barnsley CCG,31/12/2016,C&M-GMS QOF Aspiration,PRC DELEGATED CO-COMMISSIONING,NHS BARNLSEY CCG GP PRACTICE,15473552,"3,306.22 "
Department of Health,NHS Barnsley CCG,31/12/2016,C&M-PMS Contract Value,PRC DELEGATED CO-COMMISSIONING,NHS BARNLSEY CCG GP PRACTICE,15293469,"(33,026.54)"
Department of Health,NHS Barnsley CCG,31/12/2016,C&M-PMS GP Statutory Levy,PRC DELEGATED CO-COMMISSIONING,NHS BARNLSEY CCG GP PRACTICE,15293469,(141.52)
Department of Health,NHS Barnsley CCG,31/12/2016,C&M-PMS Out of Hours Opt Outs,PRC DELEGATED CO-COMMISSIONING,NHS BARNLSEY CCG GP PRACTICE,15293469,(53.13)
Department of Health,NHS Barnsley CCG,31/12/2016,C&M-PMS Voluntary Levy,PRC DELEGATED CO-COMMISSIONING,NHS BARNLSEY CCG GP PRACTICE,15293469,(24.75)
Department of Health,NHS Barnsley CCG,31/12/2016,ME-PMS GP Pension EEs-PMS,PRC DELEGATED CO-COMMISSIONING,NHS BARNLSEY CCG GP PRACTICE,15293469,(704.17)
Department of Health,NHS Barnsley CCG,31/12/2016,ME-PMS GP Pension ERs Adjs - PMS,PRC DELEGATED CO-COMMISSIONING,NHS BARNLSEY CCG GP PRACTICE,15293469,(805.57)
Department of Health,NHS Barnsley CCG,31/12/2016,C&M-PMS Contract Value,PRC DELEGATED CO-COMMISSIONING,NHS BARNLSEY CCG GP PRACTICE,15293470,"69,503.43 "
Department of Health,NHS Barnsley CCG,31/12/2016,C&M-PMS DES Learn Dsblty Hlth Chk,PRC DELEGATED CO-COMMISSIONING,NHS BARNLSEY CCG GP PRACTICE,15293470,116.00 
Department of Health,NHS Barnsley CCG,31/12/2016,C&M-PMS DES UNPLANNED ADMISSIONS,PRC DELEGATED CO-COMMISSIONING,NHS BARNLSEY CCG GP PRACTICE,15293470,"3,264.80 "
Department of Health,NHS Barnsley CCG,31/12/2016,C&M-PMS Out of Hours Opt Outs,PRC DELEGATED CO-COMMISSIONING,NHS BARNLSEY CCG GP PRACTICE,15293470,"(1,758.36)"
Department of Health,NHS Barnsley CCG,31/12/2016,C&M-PMS Prem Healthcentre Rent,PRC DELEGATED CO-COMMISSIONING,NHS BARNLSEY CCG GP PRACTICE,15293470,"10,835.69 "
Department of Health,NHS Barnsley CCG,31/12/2016,C&M-PMS QOF Aspiration,PRC DELEGATED CO-COMMISSIONING,NHS BARNLSEY CCG GP PRACTICE,15293470,"4,195.24 "
Department of Health,NHS Barnsley CCG,31/12/2016,VAT Reclaim <1Yr,BALANCE SHEET,HM REVENUE AND CUSTOMS,15283762,"43,987.56 "
Department of Health,NHS Barnsley CCG,31/12/2016,Income tax <1Yr,BALANCE SHEET,HMRC,15317281,"55,591.57 "
Department of Health,NHS Barnsley CCG,31/12/2016,Income tax <1Yr-Student Loans,BALANCE SHEET,HMRC,15317281,"1,901.00 "
Department of Health,NHS Barnsley CCG,31/12/2016,National Insurance < 1 yr-NI- ERS,BALANCE SHEET,HMRC,15317281,"38,718.85 "
Department of Health,NHS Barnsley CCG,31/12/2016,National Insurance < 1 yr-NI-EES,BALANCE SHEET,HMRC,15317281,"27,359.38 "
Department of Health,NHS Barnsley CCG,31/12/2016,Statutory Mat Pay < 1 yr,BALANCE SHEET,HMRC,15317281,"(1,847.47)"
Department of Health,NHS Barnsley CCG,31/12/2016,C&M-GMS DES Minor Surgery,PRC DELEGATED CO-COMMISSIONING,NHS BARNLSEY CCG GP PRACTICE,15473554,"2,471.96 "
Department of Health,NHS Barnsley CCG,31/12/2016,C&M-GMS DES UNPLANNED ADMISSIONS,PRC DELEGATED CO-COMMISSIONING,NHS BARNLSEY CCG GP PRACTICE,15473554,"8,878.87 "
Department of Health,NHS Barnsley CCG,31/12/2016,C&M-GMS Global Sum,PRC DELEGATED CO-COMMISSIONING,NHS BARNLSEY CCG GP PRACTICE,15473554,"77,741.28 "
Department of Health,NHS Barnsley CCG,31/12/2016,C&M-GMS PCO Seniority,PRC DELEGATED CO-COMMISSIONING,NHS BARNLSEY CCG GP PRACTICE,15473554,"5,623.28 "
Department of Health,NHS Barnsley CCG,31/12/2016,C&M-GMS Prem Healthcentre Rent,PRC DELEGATED CO-COMMISSIONING,NHS BARNLSEY CCG GP PRACTICE,15473554,"22,577.78 "
Department of Health,NHS Barnsley CCG,31/12/2016,C&M-GMS Prem Notional Rent,PRC DELEGATED CO-COMMISSIONING,NHS BARNLSEY CCG GP PRACTICE,15473554,"1,312.50 "
Department of Health,NHS Barnsley CCG,31/12/2016,C&M-GMS Prem Rates,PRC DELEGATED CO-COMMISSIONING,NHS BARNLSEY CCG GP PRACTICE,15473554,653.40 
Department of Health,NHS Barnsley CCG,31/12/2016,C&M-GMS QOF Aspiration,PRC DELEGATED CO-COMMISSIONING,NHS BARNLSEY CCG GP PRACTICE,15473554,"8,766.44 "
Department of Health,NHS Barnsley CCG,31/12/2016,C&M-PMS Contract Value,PRC DELEGATED CO-COMMISSIONING,NHS BARNLSEY CCG GP PRACTICE,15291757,"(44,156.29)"
Department of Health,NHS Barnsley CCG,31/12/2016,C&M-PMS GP Statutory Levy,PRC DELEGATED CO-COMMISSIONING,NHS BARNLSEY CCG GP PRACTICE,15291757,(212.18)
Department of Health,NHS Barnsley CCG,31/12/2016,C&M-PMS Out of Hours Opt Outs,PRC DELEGATED CO-COMMISSIONING,NHS BARNLSEY CCG GP PRACTICE,15291757,(81.36)
Department of Health,NHS Barnsley CCG,31/12/2016,C&M-PMS Voluntary Levy,PRC DELEGATED CO-COMMISSIONING,NHS BARNLSEY CCG GP PRACTICE,15291757,(37.11)
Department of Health,NHS Barnsley CCG,31/12/2016,ME-PMS GP Pension EEs-PMS,PRC DELEGATED CO-COMMISSIONING,NHS BARNLSEY CCG GP PRACTICE,15291757,(846.79)
Department of Health,NHS Barnsley CCG,31/12/2016,ME-PMS GP Pension ERs Adjs - PMS,PRC DELEGATED CO-COMMISSIONING,NHS BARNLSEY CCG GP PRACTICE,15291757,(896.97)
Department of Health,NHS Barnsley CCG,31/12/2016,C&M-PMS Baseline Adjustment,PRC DELEGATED CO-COMMISSIONING,NHS BARNLSEY CCG GP PRACTICE,15291758,"3,001.58 "
Department of Health,NHS Barnsley CCG,31/12/2016,C&M-PMS Contract Value,PRC DELEGATED CO-COMMISSIONING,NHS BARNLSEY CCG GP PRACTICE,15291758,"89,745.49 "
Department of Health,NHS Barnsley CCG,31/12/2016,C&M-PMS DES Learn Dsblty Hlth Chk,PRC DELEGATED CO-COMMISSIONING,NHS BARNLSEY CCG GP PRACTICE,15291758,464.00 
Department of Health,NHS Barnsley CCG,31/12/2016,C&M-PMS DES UNPLANNED ADMISSIONS,PRC DELEGATED CO-COMMISSIONING,NHS BARNLSEY CCG GP PRACTICE,15291758,"4,850.23 "
Department of Health,NHS Barnsley CCG,31/12/2016,C&M-PMS Out of Hours Opt Outs,PRC DELEGATED CO-COMMISSIONING,NHS BARNLSEY CCG GP PRACTICE,15291758,"(2,155.39)"
Department of Health,NHS Barnsley CCG,31/12/2016,C&M-PMS PCO Seniority,PRC DELEGATED CO-COMMISSIONING,NHS BARNLSEY CCG GP PRACTICE,15291758,"1,461.16 "
Department of Health,NHS Barnsley CCG,31/12/2016,C&M-PMS Prem Healthcentre Rent,PRC DELEGATED CO-COMMISSIONING,NHS BARNLSEY CCG GP PRACTICE,15291758,"5,694.47 "
Department of Health,NHS Barnsley CCG,31/12/2016,C&M-PMS Prem Notional Rent,PRC DELEGATED CO-COMMISSIONING,NHS BARNLSEY CCG GP PRACTICE,15291758,"3,583.33 "
Department of Health,NHS Barnsley CCG,31/12/2016,C&M-PMS QOF Aspiration,PRC DELEGATED CO-COMMISSIONING,NHS BARNLSEY CCG GP PRACTICE,15291758,"4,198.69 "
Department of Health,NHS Barnsley CCG,31/12/2016,External Data Contracts,COMMISSIONING SCHEMES,KIER BUSINESS SERVICES LTD,15279327,"22,440.00 "
Department of Health,NHS Barnsley CCG,31/12/2016,External Data Contracts,CORPORATE COSTS & SERVICES,KIER BUSINESS SERVICES LTD,15279327,"11,953.00 "
Department of Health,NHS Barnsley CCG,31/12/2016,Telecoms-Data lines,PRIMARY CARE IT,KIER BUSINESS SERVICES LTD,15279327,"51,354.00 "
Department of Health,NHS Barnsley CCG,31/12/2016,C&M-PMS Baseline Adjustment,PRC DELEGATED CO-COMMISSIONING,NHS BARNLSEY CCG GP PRACTICE,15293468,"1,386.00 "
Department of Health,NHS Barnsley CCG,31/12/2016,C&M-PMS Contract Value,PRC DELEGATED CO-COMMISSIONING,NHS BARNLSEY CCG GP PRACTICE,15293468,"47,339.87 "
Department of Health,NHS Barnsley CCG,31/12/2016,C&M-PMS DES Learn Dsblty Hlth Chk,PRC DELEGATED CO-COMMISSIONING,NHS BARNLSEY CCG GP PRACTICE,15293468,464.00 
Department of Health,NHS Barnsley CCG,31/12/2016,C&M-PMS Out of Hours Opt Outs,PRC DELEGATED CO-COMMISSIONING,NHS BARNLSEY CCG GP PRACTICE,15293468,"(1,151.58)"
Department of Health,NHS Barnsley CCG,31/12/2016,C&M-PMS PCO Seniority,PRC DELEGATED CO-COMMISSIONING,NHS BARNLSEY CCG GP PRACTICE,15293468,"2,262.30 "
Department of Health,NHS Barnsley CCG,31/12/2016,C&M-PMS Prem Notional Rent,PRC DELEGATED CO-COMMISSIONING,NHS BARNLSEY CCG GP PRACTICE,15293468,"4,145.83 "
Department of Health,NHS Barnsley CCG,31/12/2016,C&M-PMS Prem Rates,PRC DELEGATED CO-COMMISSIONING,NHS BARNLSEY CCG GP PRACTICE,15293468,762.30 
Department of Health,NHS Barnsley CCG,31/12/2016,C&M-PMS QOF Aspiration,PRC DELEGATED CO-COMMISSIONING,NHS BARNLSEY CCG GP PRACTICE,15293468,"1,890.25 "
Department of Health,NHS Barnsley CCG,31/12/2016,C&M-PMS Cost of Drugs -Dispensing,LOCAL ENHANCED SERVICES,NHS BARNLSEY CCG GP PRACTICE,15494350,"31,131.07 "
Department of Health,NHS Barnsley CCG,31/12/2016,C&M-PMS Prof fees Dispensing,PRC DELEGATED CO-COMMISSIONING,NHS BARNLSEY CCG GP PRACTICE,15494350,"5,372.18 "
Department of Health,NHS Barnsley CCG,31/12/2016,C&M-PMS Prsc Chrgs Cll&Rmttd by GPs,LOCAL ENHANCED SERVICES,NHS BARNLSEY CCG GP PRACTICE,15494350,"1,310.40 "
Department of Health,NHS Barnsley CCG,31/12/2016,C&M-APMS Contract Value,PRC DELEGATED CO-COMMISSIONING,NHS BARNLSEY CCG GP PRACTICE,15291762,"17,005.38 "
Department of Health,NHS Barnsley CCG,31/12/2016,C&M-APMS OOH Opt Outs,PRC DELEGATED CO-COMMISSIONING,NHS BARNLSEY CCG GP PRACTICE,15291762,(827.83)
Department of Health,NHS Barnsley CCG,31/12/2016,C&M-APMS Prem Other,PRC DELEGATED CO-COMMISSIONING,NHS BARNLSEY CCG GP PRACTICE,15291762,"4,744.50 "
Department of Health,NHS Barnsley CCG,31/12/2016,C&M-PMS Contract Value,PRC DELEGATED CO-COMMISSIONING,NHS BARNLSEY CCG GP PRACTICE,15291762,"16,343.31 "
Department of Health,NHS Barnsley CCG,31/12/2016,C&M-PMS Prem Healthcentre Rent,PRC DELEGATED CO-COMMISSIONING,NHS BARNLSEY CCG GP PRACTICE,15291762,12.41 
Department of Health,NHS Barnsley CCG,31/12/2016,C&M-PMS QOF Aspiration,PRC DELEGATED CO-COMMISSIONING,NHS BARNLSEY CCG GP PRACTICE,15291762,"1,422.76 "
Department of Health,NHS Barnsley CCG,30/11/2016,Hcare Srv Rec NHS Trust-CQUIN,ACUTE COMMISSIONING,LEEDS TEACHING HOSPITALS NHS TRUST,15166209,"1,583.54 "
Department of Health,NHS Barnsley CCG,30/11/2016,Hcare Srv Rec NHS Trust-Contract Baseline,ACUTE COMMISSIONING,LEEDS TEACHING HOSPITALS NHS TRUST,15166209,"73,789.76 "
Department of Health,NHS Barnsley CCG,30/11/2016,Hcare Srv Rec NHS Trust-CQUIN,ACUTE COMMISSIONING,MID YORKSHIRE HOSPITALS NHS TRUST,15166235,"2,195.00 "
Department of Health,NHS Barnsley CCG,30/11/2016,Hcare Srv Rec NHS Trust-Contract Baseline,ACUTE COMMISSIONING,MID YORKSHIRE HOSPITALS NHS TRUST,15166235,"205,233.00 "
Department of Health,NHS Barnsley CCG,31/12/2016,Other Gen Supplies & Srv,CORPORATE COSTS & SERVICES,NHS SHEFFIELD CCG,15322354,"53,360.25 "
Department of Health,NHS Barnsley CCG,31/12/2016,Chrgs from SLA,COMMISSIONING SCHEMES,NHS SHEFFIELD CCG,15427049,"13,528.00 "
Department of Health,NHS Barnsley CCG,31/12/2016,Other Gen Supplies & Srv,CORPORATE COSTS & SERVICES,NHS SHEFFIELD CCG,15427049,"19,578.00 "
Department of Health,NHS Barnsley CCG,31/12/2016,Clinical&Medical-Commercial Sector,ACUTE COMMISSIONING,ONEHEALTH GROUP,15279254,"113,491.52 "
Department of Health,NHS Barnsley CCG,31/12/2016,Clinical&Medical-Commercial Sector,ACUTE COMMISSIONING,ONEHEALTH GROUP,15427080,"102,782.68 "
Department of Health,NHS Barnsley CCG,31/12/2016,Clinical&Medical-Commercial Sector,ACUTE COMMISSIONING,PAIN MANAGEMENT SOLUTIONS LTD,15456988,"29,134.67 "
Department of Health,NHS Barnsley CCG,31/12/2016,Hcare Srv Rec Fdtn Trust-CQUIN,MENTAL HEALTH CONTRACTS,ROTHERHAM DONCASTER & SOUTH HUMBER MENTAL HEALTH NHS FOUNDATION TRUST,15279396,674.86 
Department of Health,NHS Barnsley CCG,31/12/2016,Hcare Srv Rec Fdtn Trust-Contract Baseline,MENTAL HEALTH CONTRACTS,ROTHERHAM DONCASTER & SOUTH HUMBER MENTAL HEALTH NHS FOUNDATION TRUST,15279396,"49,161.69 "
Department of Health,NHS Barnsley CCG,31/12/2016,Hcare Srv Rec Fdtn Trust-CQUIN,ACUTE COMMISSIONING,ROTHERHAM NHS FOUNDATION TRUST,15322380,"80,148.45 "
Department of Health,NHS Barnsley CCG,31/12/2016,Hcare Srv Rec Fdtn Trust-Contract Baseline,ACUTE COMMISSIONING,ROTHERHAM NHS FOUNDATION TRUST,15322380,"(39,001.45)"
Department of Health,NHS Barnsley CCG,30/11/2016,Hcare Srv Rec Fdtn Trust-CQUIN,ACUTE COMMISSIONING,ROTHERHAM NHS FOUNDATION TRUST,15166227,"10,072.00 "
Department of Health,NHS Barnsley CCG,30/11/2016,Hcare Srv Rec Fdtn Trust-Contract Baseline,ACUTE COMMISSIONING,ROTHERHAM NHS FOUNDATION TRUST,15166227,"956,207.00 "
Department of Health,NHS Barnsley CCG,31/12/2016,C&M-PMS Contract Value,PRC DELEGATED CO-COMMISSIONING,NHS BARNLSEY CCG GP PRACTICE,15293471,"(32,412.67)"
Department of Health,NHS Barnsley CCG,31/12/2016,C&M-PMS GP Statutory Levy,PRC DELEGATED CO-COMMISSIONING,NHS BARNLSEY CCG GP PRACTICE,15293471,(168.12)
Department of Health,NHS Barnsley CCG,31/12/2016,C&M-PMS Out of Hours Opt Outs,PRC DELEGATED CO-COMMISSIONING,NHS BARNLSEY CCG GP PRACTICE,15293471,(471.12)
Department of Health,NHS Barnsley CCG,31/12/2016,C&M-PMS Voluntary Levy,PRC DELEGATED CO-COMMISSIONING,NHS BARNLSEY CCG GP PRACTICE,15293471,(29.41)
Department of Health,NHS Barnsley CCG,31/12/2016,ME-PMS GP Pension EEs-PMS,PRC DELEGATED CO-COMMISSIONING,NHS BARNLSEY CCG GP PRACTICE,15293471,(593.75)
Department of Health,NHS Barnsley CCG,31/12/2016,ME-PMS GP Pension ERs Adjs - PMS,PRC DELEGATED CO-COMMISSIONING,NHS BARNLSEY CCG GP PRACTICE,15293471,(679.25)
Department of Health,NHS Barnsley CCG,31/12/2016,C&M-PMS Baseline Adjustment,PRC DELEGATED CO-COMMISSIONING,NHS BARNLSEY CCG GP PRACTICE,15293472,407.50 
Department of Health,NHS Barnsley CCG,31/12/2016,C&M-PMS Contract Value,PRC DELEGATED CO-COMMISSIONING,NHS BARNLSEY CCG GP PRACTICE,15293472,"76,269.67 "
Department of Health,NHS Barnsley CCG,31/12/2016,C&M-PMS Out of Hours Opt Outs,PRC DELEGATED CO-COMMISSIONING,NHS BARNLSEY CCG GP PRACTICE,15293472,"(1,701.08)"
Department of Health,NHS Barnsley CCG,31/12/2016,C&M-PMS PCO Seniority,PRC DELEGATED CO-COMMISSIONING,NHS BARNLSEY CCG GP PRACTICE,15293472,"3,073.21 "
Department of Health,NHS Barnsley CCG,31/12/2016,C&M-PMS Prem Notional Rent,PRC DELEGATED CO-COMMISSIONING,NHS BARNLSEY CCG GP PRACTICE,15293472,"3,041.67 "
Department of Health,NHS Barnsley CCG,31/12/2016,C&M-PMS QOF Aspiration,PRC DELEGATED CO-COMMISSIONING,NHS BARNLSEY CCG GP PRACTICE,15293472,"2,458.56 "
Department of Health,NHS Barnsley CCG,31/12/2016,C&M-GMS DES Minor Surgery,PRC DELEGATED CO-COMMISSIONING,NHS BARNLSEY CCG GP PRACTICE,15473764,"2,557.20 "
Department of Health,NHS Barnsley CCG,31/12/2016,C&M-GMS Global Sum,PRC DELEGATED CO-COMMISSIONING,NHS BARNLSEY CCG GP PRACTICE,15473764,"57,082.83 "
Department of Health,NHS Barnsley CCG,31/12/2016,C&M-GMS PCO Seniority,PRC DELEGATED CO-COMMISSIONING,NHS BARNLSEY CCG GP PRACTICE,15473764,995.05 
Department of Health,NHS Barnsley CCG,31/12/2016,C&M-GMS Prem Actual Rent,PRC DELEGATED CO-COMMISSIONING,NHS BARNLSEY CCG GP PRACTICE,15473764,"4,750.00 "
Department of Health,NHS Barnsley CCG,31/12/2016,C&M-GMS QOF Aspiration,PRC DELEGATED CO-COMMISSIONING,NHS BARNLSEY CCG GP PRACTICE,15473764,"7,060.35 "
Department of Health,NHS Barnsley CCG,30/11/2016,Hcare Srv Rec Fdtn Trust-CQUIN,ACUTE COMMISSIONING,SHEFFIELD CHILDRENS NHS FOUNDATION TRUST,15166169,"2,045.48 "
Department of Health,NHS Barnsley CCG,30/11/2016,Hcare Srv Rec Fdtn Trust-Contract Baseline,ACUTE COMMISSIONING,SHEFFIELD CHILDRENS NHS FOUNDATION TRUST,15166169,"174,355.39 "
Department of Health,NHS Barnsley CCG,31/12/2016,Hcare Srv Rec Fdtn Trust-Contract Baseline,ACUTE COMMISSIONING,SHEFFIELD TEACHING HOSPITALS NHS FOUNDATION TRUST,15427085,"(38,850.00)"
Department of Health,NHS Barnsley CCG,31/12/2016,Hcare Srv Rec Fdtn Trust-Contract Baseline,ACUTE COMMISSIONING,SHEFFIELD TEACHING HOSPITALS NHS FOUNDATION TRUST,15427089,"(111,497.00)"
Department of Health,NHS Barnsley CCG,30/11/2016,Hcare Srv Rec Fdtn Trust-Contract Baseline,ACUTE COMMISSIONING,SHEFFIELD TEACHING HOSPITALS NHS FOUNDATION TRUST,15166293,"1,901,486.00 "
Department of Health,NHS Barnsley CCG,30/11/2016,Hcare Srv Rec Fdtn Trust-Contract Baseline,ACUTE COMMISSIONING,SHEFFIELD TEACHING HOSPITALS NHS FOUNDATION TRUST,15166299,"191,466.00 "
Department of Health,NHS Barnsley CCG,31/12/2016,Hcare Srv Rec Fdtn Trust-CQUIN,COMMUNITY SERVICES,SOUTH WEST YORKSHIRE PARTNERSHIP NHS FOUNDATION TRUST,15234738,"36,125.00 "
Department of Health,NHS Barnsley CCG,31/12/2016,Hcare Srv Rec Fdtn Trust-CQUIN,LEARNING DIFFICULTIES,SOUTH WEST YORKSHIRE PARTNERSHIP NHS FOUNDATION TRUST,15234738,"2,010.00 "
Department of Health,NHS Barnsley CCG,31/12/2016,Hcare Srv Rec Fdtn Trust-CQUIN,MENTAL HEALTH SERVICES - ADULTS,SOUTH WEST YORKSHIRE PARTNERSHIP NHS FOUNDATION TRUST,15234738,"24,553.00 "
Department of Health,NHS Barnsley CCG,31/12/2016,Hcare Srv Rec Fdtn Trust-CQUIN,MENTAL HEALTH SERVICES - OLDER PEOPLE,SOUTH WEST YORKSHIRE PARTNERSHIP NHS FOUNDATION TRUST,15234738,"4,322.00 "
Department of Health,NHS Barnsley CCG,31/12/2016,Hcare Srv Rec Fdtn Trust-Contract Baseline,COMMUNITY SERVICES,SOUTH WEST YORKSHIRE PARTNERSHIP NHS FOUNDATION TRUST,15234738,"2,901,982.00 "
Department of Health,NHS Barnsley CCG,31/12/2016,Hcare Srv Rec Fdtn Trust-Contract Baseline,LEARNING DIFFICULTIES,SOUTH WEST YORKSHIRE PARTNERSHIP NHS FOUNDATION TRUST,15234738,"160,876.00 "
Department of Health,NHS Barnsley CCG,31/12/2016,Hcare Srv Rec Fdtn Trust-Contract Baseline,MENTAL HEALTH SERVICES - ADULTS,SOUTH WEST YORKSHIRE PARTNERSHIP NHS FOUNDATION TRUST,15234738,"2,007,084.00 "
Department of Health,NHS Barnsley CCG,31/12/2016,Hcare Srv Rec Fdtn Trust-Contract Baseline,MENTAL HEALTH SERVICES - OLDER PEOPLE,SOUTH WEST YORKSHIRE PARTNERSHIP NHS FOUNDATION TRUST,15234738,"345,763.00 "
Department of Health,NHS Barnsley CCG,31/12/2016,Other Gen Supplies & Srv,PRC DELEGATED CO-COMMISSIONING,SOUTH WEST YORKSHIRE PARTNERSHIP NHS FOUNDATION TRUST,15398924,"(33,793.00)"
Department of Health,NHS Barnsley CCG,31/12/2016,Other Gen Supplies & Srv,PRC DELEGATED CO-COMMISSIONING,SOUTH WEST YORKSHIRE PARTNERSHIP NHS FOUNDATION TRUST,15427031,"33,793.00 "
Department of Health,NHS Barnsley CCG,31/12/2016,Other Gen Supplies & Srv,PRC DELEGATED CO-COMMISSIONING,SOUTH WEST YORKSHIRE PARTNERSHIP NHS FOUNDATION TRUST,15427093,"46,323.00 "
Department of Health,NHS Barnsley CCG,31/12/2016,C&M-PMS Contract Value,PRC DELEGATED CO-COMMISSIONING,NHS BARNLSEY CCG GP PRACTICE,15291759,"(60,986.45)"
Department of Health,NHS Barnsley CCG,31/12/2016,C&M-PMS GP Statutory Levy,PRC DELEGATED CO-COMMISSIONING,NHS BARNLSEY CCG GP PRACTICE,15291759,(290.44)
Department of Health,NHS Barnsley CCG,31/12/2016,C&M-PMS Out of Hours Opt Outs,PRC DELEGATED CO-COMMISSIONING,NHS BARNLSEY CCG GP PRACTICE,15291759,(86.60)
Department of Health,NHS Barnsley CCG,31/12/2016,C&M-PMS Prem Healthcentre Rent,PRC DELEGATED CO-COMMISSIONING,NHS BARNLSEY CCG GP PRACTICE,15291759,(0.88)
Department of Health,NHS Barnsley CCG,31/12/2016,C&M-PMS Voluntary Levy,PRC DELEGATED CO-COMMISSIONING,NHS BARNLSEY CCG GP PRACTICE,15291759,(50.80)
Department of Health,NHS Barnsley CCG,31/12/2016,ME-PMS GP Pension EEs-PMS,PRC DELEGATED CO-COMMISSIONING,NHS BARNLSEY CCG GP PRACTICE,15291759,"(1,615.80)"
Department of Health,NHS Barnsley CCG,31/12/2016,ME-PMS GP Pension ERs Adjs - PMS,PRC DELEGATED CO-COMMISSIONING,NHS BARNLSEY CCG GP PRACTICE,15291759,"(1,967.45)"
Department of Health,NHS Barnsley CCG,31/12/2016,C&M-PMS Contract Value,PRC DELEGATED CO-COMMISSIONING,NHS BARNLSEY CCG GP PRACTICE,15291760,"128,551.23 "
Department of Health,NHS Barnsley CCG,31/12/2016,C&M-PMS Out of Hours Opt Outs,PRC DELEGATED CO-COMMISSIONING,NHS BARNLSEY CCG GP PRACTICE,15291760,"(3,383.92)"
Department of Health,NHS Barnsley CCG,31/12/2016,C&M-PMS PCO Seniority,PRC DELEGATED CO-COMMISSIONING,NHS BARNLSEY CCG GP PRACTICE,15291760,"2,873.93 "
Department of Health,NHS Barnsley CCG,31/12/2016,C&M-PMS Prem Actual Rent,PRC DELEGATED CO-COMMISSIONING,NHS BARNLSEY CCG GP PRACTICE,15291760,336.75 
Department of Health,NHS Barnsley CCG,31/12/2016,C&M-PMS Prem Healthcentre Rent,PRC DELEGATED CO-COMMISSIONING,NHS BARNLSEY CCG GP PRACTICE,15291760,"15,940.23 "
Department of Health,NHS Barnsley CCG,31/12/2016,C&M-PMS QOF Aspiration,PRC DELEGATED CO-COMMISSIONING,NHS BARNLSEY CCG GP PRACTICE,15291760,"6,208.13 "
Department of Health,NHS Barnsley CCG,31/12/2016,C&M-PMS Contract Value,PRC DELEGATED CO-COMMISSIONING,NHS BARNLSEY CCG GP PRACTICE,15293465,"(33,665.48)"
Department of Health,NHS Barnsley CCG,31/12/2016,C&M-PMS GP Statutory Levy,PRC DELEGATED CO-COMMISSIONING,NHS BARNLSEY CCG GP PRACTICE,15293465,(154.48)
Department of Health,NHS Barnsley CCG,31/12/2016,C&M-PMS Out of Hours Opt Outs,PRC DELEGATED CO-COMMISSIONING,NHS BARNLSEY CCG GP PRACTICE,15293465,(27.15)
Department of Health,NHS Barnsley CCG,31/12/2016,C&M-PMS Voluntary Levy,PRC DELEGATED CO-COMMISSIONING,NHS BARNLSEY CCG GP PRACTICE,15293465,(27.02)
Department of Health,NHS Barnsley CCG,31/12/2016,ME-PMS GP Pension EEs-PMS,PRC DELEGATED CO-COMMISSIONING,NHS BARNLSEY CCG GP PRACTICE,15293465,(520.83)
Department of Health,NHS Barnsley CCG,31/12/2016,ME-PMS GP Pension ERs Adjs - PMS,PRC DELEGATED CO-COMMISSIONING,NHS BARNLSEY CCG GP PRACTICE,15293465,(595.83)
Department of Health,NHS Barnsley CCG,31/12/2016,C&M-PMS Contract Value,PRC DELEGATED CO-COMMISSIONING,NHS BARNLSEY CCG GP PRACTICE,15293466,"69,578.28 "
Department of Health,NHS Barnsley CCG,31/12/2016,C&M-PMS DES UNPLANNED ADMISSIONS,PRC DELEGATED CO-COMMISSIONING,NHS BARNLSEY CCG GP PRACTICE,15293466,"3,610.53 "
Department of Health,NHS Barnsley CCG,31/12/2016,C&M-PMS Out of Hours Opt Outs,PRC DELEGATED CO-COMMISSIONING,NHS BARNLSEY CCG GP PRACTICE,15293466,"(1,819.89)"
Department of Health,NHS Barnsley CCG,31/12/2016,C&M-PMS PCO Seniority,PRC DELEGATED CO-COMMISSIONING,NHS BARNLSEY CCG GP PRACTICE,15293466,"1,001.81 "
Department of Health,NHS Barnsley CCG,31/12/2016,C&M-PMS Prem Healthcentre Rent,PRC DELEGATED CO-COMMISSIONING,NHS BARNLSEY CCG GP PRACTICE,15293466,"1,189.84 "
Department of Health,NHS Barnsley CCG,31/12/2016,C&M-PMS Prem Rates,PRC DELEGATED CO-COMMISSIONING,NHS BARNLSEY CCG GP PRACTICE,15293466,"3,064.83 "
Department of Health,NHS Barnsley CCG,31/12/2016,C&M-PMS QOF Aspiration,PRC DELEGATED CO-COMMISSIONING,NHS BARNLSEY CCG GP PRACTICE,15293466,"4,059.35 "
Department of Health,NHS Barnsley CCG,31/12/2016,Hcare Srv Rec NHS Trust-Contract Baseline,NHS 111,YORKSHIRE AMBULANCE SERVICE NHS TRUST,15234784,"47,766.40 "
Department of Health,NHS Barnsley CCG,31/12/2016,Hcare Srv Rec NHS Trust-Non Contract,WINTER PRESSURES,YORKSHIRE AMBULANCE SERVICE NHS TRUST,15234787,"35,333.33 "
Department of Health,NHS Barnsley CCG,31/12/2016,Hcare Srv Rec NHS Trust-Contract Baseline,AMBULANCE SERVICES,YORKSHIRE AMBULANCE SERVICE NHS TRUST,15234789,"608,043.00 "
Department of Health,NHS Barnsley CCG,31/12/2016,Hcare Srv Rec NHS Trust-Contract Baseline,PATIENT TRANSPORT,YORKSHIRE AMBULANCE SERVICE NHS TRUST,15234790,"123,815.00 "
,,,,,,,"24,720,871.94 "
